[Event "*** Titled Tuesday Blitz"]
[Site "Chess.com"]
[Date "2021.04.20"]
[Round "3"]
[White "juancruzarias"]
[Black "Eloist"]
[Result "1-0"]
[WhiteElo "2565"]
[BlackElo "2368"]
[TimeControl "180+1"]
[EndTime "10:26:00 PDT"]
[Termination "juancruzarias won by checkmate"]

1. d4 {[%clk 0:03:00.9]} 1... e6 {[%clk 0:02:59.8]} 2. Nf3 {[%clk 0:03:01.5]}
2... Nf6 {[%clk 0:02:59.8]} 3. e3 {[%clk 0:02:59.9]} 3... b6 {[%clk 0:02:59.7]}
4. Bd3 {[%clk 0:03:00.3]} 4... Bb7 {[%clk 0:02:59.9]} 5. O-O {[%clk 0:03:01.2]}
5... c5 {[%clk 0:02:59.9]} 6. c4 {[%clk 0:03:01.5]} 6... g6 {[%clk 0:02:59.7]}
7. Nc3 {[%clk 0:03:01.7]} 7... Bg7 {[%clk 0:02:59.3]} 8. d5 {[%clk 0:03:02.3]}
8... exd5 {[%clk 0:02:59.5]} 9. cxd5 {[%clk 0:03:03.2]} 9... Nxd5 {[%clk
0:02:59.7]} 10. e4 {[%clk 0:03:03.9]} 10... Nxc3 {[%clk 0:02:57.2]} 11. bxc3
{[%clk 0:03:03.8]} 11... Bxc3 {[%clk 0:02:55.7]} 12. Bh6 {[%clk 0:03:02.5]}
12... Bxa1 {[%clk 0:02:35.3]} 13. Qxa1 {[%clk 0:03:03.3]} 13... f6 {[%clk
0:02:32.3]} 14. Bg7 {[%clk 0:03:00.6]} 14... Kf7 {[%clk 0:02:20.5]} 15. Bxh8
{[%clk 0:02:59.5]} 15... Qxh8 {[%clk 0:02:17.9]} 16. Rd1 {[%clk 0:02:55.4]}
16... Qe8 {[%clk 0:02:13.9]} 17. Bc4+ {[%clk 0:02:40]} 17... Kg7 {[%clk
0:02:13.4]} 18. e5 {[%clk 0:02:40.3]} 18... Qe7 {[%clk 0:02:07.6]} 19. Re1
{[%clk 0:02:22.1]} 19... Nc6 {[%clk 0:01:50]} 20. Bd5 {[%clk 0:02:11.2]} 20...
fxe5 {[%clk 0:01:01.9]} 21. Nxe5 {[%clk 0:02:03.6]} 21... Qf6 {[%clk 0:00:48.9]}
22. f4 {[%clk 0:01:36.6]} 22... Re8 {[%clk 0:00:32.5]} 23. g4 {[%clk 0:01:24]}
23... Na5 {[%clk 0:00:17.2]} 24. g5 {[%clk 0:01:20.2]} 24... Qxf4 {[%clk
0:00:15.9]} 25. Nc6+ {[%clk 0:01:14.9]} 25... Kf8 {[%clk 0:00:12.3]} 26. Qh8#
{[%clk 0:01:13.5]} 1-0

[Event "*** Titled Tuesday Blitz"]
[Site "Chess.com"]
[Date "2021.04.20"]
[Round "3"]
[White "twitchTriniCupid"]
[Black "VD_coach"]
[Result "0-1"]
[WhiteElo "2219"]
[BlackElo "2500"]
[TimeControl "180+1"]
[EndTime "10:26:03 PDT"]
[Termination "VD_coach won by resignation"]

1. d4 {[%clk 0:03:00.9]} 1... Nf6 {[%clk 0:02:59.7]} 2. c4 {[%clk 0:03:00.7]}
2... g6 {[%clk 0:02:59.9]} 3. Nc3 {[%clk 0:03:00.7]} 3... Bg7 {[%clk 0:02:59.8]}
4. Bg5 {[%clk 0:02:59.4]} 4... O-O {[%clk 0:02:59.5]} 5. e3 {[%clk 0:02:59.9]}
5... d6 {[%clk 0:02:58.5]} 6. Bd3 {[%clk 0:02:59.7]} 6... c5 {[%clk 0:02:58.9]}
7. Nge2 {[%clk 0:02:59.3]} 7... Nc6 {[%clk 0:02:58.3]} 8. O-O {[%clk 0:02:59.3]}
8... b6 {[%clk 0:02:56.6]} 9. b3 {[%clk 0:02:55.6]} 9... Bb7 {[%clk 0:02:56.2]}
10. Rc1 {[%clk 0:02:54.1]} 10... e6 {[%clk 0:02:56]} 11. d5 {[%clk 0:02:48.3]}
11... Ne5 {[%clk 0:02:54.2]} 12. dxe6 {[%clk 0:02:47.8]} 12... fxe6 {[%clk
0:02:53.9]} 13. Bb1 {[%clk 0:02:46.4]} 13... Qc7 {[%clk 0:02:44.9]} 14. Nf4
{[%clk 0:02:45.1]} 14... Qe7 {[%clk 0:02:38]} 15. Nb5 {[%clk 0:02:22.5]} 15...
Rad8 {[%clk 0:02:29.7]} 16. Nxa7 {[%clk 0:02:03.1]} 16... h6 {[%clk 0:02:29.1]}
17. Bxf6 {[%clk 0:01:59.4]} 17... Qxf6 {[%clk 0:02:28.9]} 18. f3 {[%clk
0:01:51.4]} 18... d5 {[%clk 0:02:06.1]} 19. cxd5 {[%clk 0:01:32.8]} 19... exd5
{[%clk 0:02:05.7]} 20. Nh3 {[%clk 0:01:02.4]} 20... d4 {[%clk 0:01:54.7]} 21.
exd4 {[%clk 0:00:59.9]} 21... Rxd4 {[%clk 0:01:54.2]} 22. Qc2 {[%clk 0:00:57.1]}
22... Rh4 {[%clk 0:01:41]} 23. Qc3 {[%clk 0:00:23]} 23... Rxh3 {[%clk
0:01:37.3]} 24. gxh3 {[%clk 0:00:21.3]} 24... Qg5+ {[%clk 0:01:34.9]} 25. Kh1
{[%clk 0:00:21.3]} 25... Nxf3 {[%clk 0:01:30.5]} 26. Qc4+ {[%clk 0:00:16.8]}
26... Kh7 {[%clk 0:01:26.1]} 27. Be4 {[%clk 0:00:16.1]} 27... Nd2 {[%clk
0:01:23.7]} 28. Bxb7 {[%clk 0:00:14.5]} 28... Nxc4 {[%clk 0:01:22.4]} 29. bxc4
{[%clk 0:00:15.4]} 29... Rxf1+ {[%clk 0:01:20.3]} 30. Rxf1 {[%clk 0:00:16.3]}
30... Qe7 {[%clk 0:01:19.8]} 31. Bd5 {[%clk 0:00:15.5]} 31... Qxa7 {[%clk
0:01:19.4]} 0-1

[Event "*** Titled Tuesday Blitz"]
[Site "Chess.com"]
[Date "2021.04.20"]
[Round "3"]
[White "winniethepooh04"]
[Black "Kislov_Oleg"]
[Result "0-1"]
[WhiteElo "2270"]
[BlackElo "2510"]
[TimeControl "180+1"]
[EndTime "10:26:06 PDT"]
[Termination "Kislov_Oleg won on time"]

1. e4 {[%clk 0:03:00.9]} 1... c5 {[%clk 0:02:59.8]} 2. Nf3 {[%clk 0:03:00.5]}
2... Nc6 {[%clk 0:02:59.6]} 3. d4 {[%clk 0:03:00.3]} 3... cxd4 {[%clk
0:03:00.2]} 4. Nxd4 {[%clk 0:03:00.8]} 4... e5 {[%clk 0:02:59]} 5. Nxc6 {[%clk
0:02:59.8]} 5... bxc6 {[%clk 0:02:58.8]} 6. Nc3 {[%clk 0:03:00.7]} 6... Nf6
{[%clk 0:02:58.4]} 7. Bc4 {[%clk 0:02:59.2]} 7... Bb4 {[%clk 0:02:53.5]} 8. Qd3
{[%clk 0:02:36.2]} 8... d5 {[%clk 0:02:43.4]} 9. exd5 {[%clk 0:02:34.2]} 9...
cxd5 {[%clk 0:02:43.7]} 10. Bb5+ {[%clk 0:02:25.9]} 10... Bd7 {[%clk 0:02:43.7]}
11. Bxd7+ {[%clk 0:02:23.6]} 11... Qxd7 {[%clk 0:02:41.6]} 12. O-O {[%clk
0:02:23.5]} 12... O-O {[%clk 0:02:36.9]} 13. Bg5 {[%clk 0:02:22.5]} 13... Bxc3
{[%clk 0:02:31.8]} 14. Bxf6 {[%clk 0:01:56.5]} 14... Bxb2 {[%clk 0:02:28.3]} 15.
Qg3 {[%clk 0:01:46.3]} 15... g6 {[%clk 0:02:26.8]} 16. Rab1 {[%clk 0:01:31.1]}
16... Rab8 {[%clk 0:01:56.3]} 17. Qh4 {[%clk 0:00:47.8]} 17... h5 {[%clk
0:01:35.4]} 18. Rxb2 {[%clk 0:00:40.8]} 18... Rxb2 {[%clk 0:01:31.7]} 19. Bxe5
{[%clk 0:00:40.1]} 19... Rb6 {[%clk 0:01:31.2]} 20. Qg5 {[%clk 0:00:23.5]} 20...
Qf5 {[%clk 0:01:21.2]} 21. Qe7 {[%clk 0:00:17.2]} 21... Re6 {[%clk 0:01:19.8]}
22. Qxa7 {[%clk 0:00:08.1]} 22... Qxe5 {[%clk 0:01:19.6]} 23. a4 {[%clk
0:00:06]} 23... Rfe8 {[%clk 0:01:19.5]} 24. a5 {[%clk 0:00:04.1]} 24... Qa1
{[%clk 0:01:18]} 25. g3 {[%clk 0:00:01.2]} 25... Re1 {[%clk 0:01:17.2]} 0-1

[Event "*** Titled Tuesday Blitz"]
[Site "Chess.com"]
[Date "2021.04.20"]
[Round "3"]
[White "SirStrateg"]
[Black "Valeron87"]
[Result "1-0"]
[WhiteElo "2610"]
[BlackElo "2406"]
[TimeControl "180+1"]
[EndTime "10:26:07 PDT"]
[Termination "SirStrateg won by resignation"]

1. d4 {[%clk 0:03:00.9]} 1... d5 {[%clk 0:02:59.3]} 2. Bf4 {[%clk 0:02:53.5]}
2... Nf6 {[%clk 0:02:57.6]} 3. e3 {[%clk 0:02:52.3]} 3... e6 {[%clk 0:02:57.7]}
4. Nf3 {[%clk 0:02:50.4]} 4... Bd6 {[%clk 0:02:57.2]} 5. Bg3 {[%clk 0:02:48.1]}
5... O-O {[%clk 0:02:55.6]} 6. Nbd2 {[%clk 0:02:47.5]} 6... b6 {[%clk
0:02:55.6]} 7. c3 {[%clk 0:02:44.9]} 7... c5 {[%clk 0:02:51.6]} 8. Bd3 {[%clk
0:02:44.3]} 8... Ba6 {[%clk 0:02:50.8]} 9. Bxa6 {[%clk 0:02:40]} 9... Nxa6
{[%clk 0:02:50.5]} 10. a4 {[%clk 0:02:40.7]} 10... Nb8 {[%clk 0:02:39.3]} 11.
Qe2 {[%clk 0:02:39.8]} 11... Nc6 {[%clk 0:02:35.1]} 12. Bh4 {[%clk 0:02:26.2]}
12... Be7 {[%clk 0:02:33.7]} 13. O-O {[%clk 0:02:20.9]} 13... Ne4 {[%clk
0:02:25.9]} 14. Bxe7 {[%clk 0:02:19.4]} 14... Qxe7 {[%clk 0:02:25.7]} 15. Nxe4
{[%clk 0:02:20]} 15... dxe4 {[%clk 0:02:23.3]} 16. Nd2 {[%clk 0:02:20.7]} 16...
f5 {[%clk 0:02:18.6]} 17. f3 {[%clk 0:02:18.5]} 17... exf3 {[%clk 0:02:16.1]}
18. Rxf3 {[%clk 0:02:11.9]} 18... e5 {[%clk 0:01:35.1]} 19. Qc4+ {[%clk
0:02:05.8]} 19... Kh8 {[%clk 0:01:33.6]} 20. Raf1 {[%clk 0:02:01.2]} 20... exd4
{[%clk 0:01:26.6]} 21. exd4 {[%clk 0:01:58.2]} 21... Na5 {[%clk 0:01:24.8]} 22.
Qd3 {[%clk 0:01:53]} 22... cxd4 {[%clk 0:01:23.6]} 23. Qxd4 {[%clk 0:01:47.7]}
23... Rad8 {[%clk 0:01:15.6]} 24. Qf2 {[%clk 0:01:46.8]} 24... g6 {[%clk
0:01:14.2]} 25. Re3 {[%clk 0:01:43.9]} 25... Qd7 {[%clk 0:01:13.6]} 26. Nf3
{[%clk 0:01:33.7]} 26... Nc4 {[%clk 0:01:12.3]} 27. Re2 {[%clk 0:01:13.4]} 27...
Qxa4 {[%clk 0:01:04.7]} 28. Re7 {[%clk 0:01:00.8]} 28... Rd7 {[%clk 0:00:51]}
29. b3 {[%clk 0:01:00.2]} 29... Qc6 {[%clk 0:00:43.8]} 30. Rxd7 {[%clk
0:00:59.7]} 30... Qxd7 {[%clk 0:00:43.9]} 31. bxc4 {[%clk 0:01:00.2]} 31... Rc8
{[%clk 0:00:42.6]} 32. Ne5 {[%clk 0:00:54.7]} 32... Qd6 {[%clk 0:00:37.1]} 33.
Nf7+ {[%clk 0:00:53.9]} 1-0

[Event "*** Titled Tuesday Blitz"]
[Site "Chess.com"]
[Date "2021.04.20"]
[Round "3"]
[White "alexgo05"]
[Black "rugbyclub"]
[Result "0-1"]
[WhiteElo "2478"]
[BlackElo "2248"]
[TimeControl "180+1"]
[EndTime "10:26:07 PDT"]
[Termination "rugbyclub won by resignation"]

1. Nf3 {[%clk 0:03:00.9]} 1... d5 {[%clk 0:02:57.9]} 2. b3 {[%clk 0:03:00.9]}
2... Bf5 {[%clk 0:02:46.6]} 3. Bb2 {[%clk 0:03:00.3]} 3... Nf6 {[%clk
0:02:47.1]} 4. g3 {[%clk 0:02:55.2]} 4... e6 {[%clk 0:02:46.2]} 5. d3 {[%clk
0:02:52.6]} 5... Nbd7 {[%clk 0:02:46.2]} 6. Nh4 {[%clk 0:02:51.7]} 6... Bg4
{[%clk 0:02:45.4]} 7. h3 {[%clk 0:02:51.6]} 7... Bh5 {[%clk 0:02:45.5]} 8. g4
{[%clk 0:02:51.9]} 8... Bg6 {[%clk 0:02:42.2]} 9. Bg2 {[%clk 0:02:50.4]} 9...
Bd6 {[%clk 0:02:38.7]} 10. Nd2 {[%clk 0:02:40.5]} 10... e5 {[%clk 0:02:29.7]}
11. e3 {[%clk 0:02:23.9]} 11... c6 {[%clk 0:02:27.1]} 12. Qe2 {[%clk 0:02:22.2]}
12... Qe7 {[%clk 0:02:22.3]} 13. Nxg6 {[%clk 0:02:14.3]} 13... hxg6 {[%clk
0:02:20.5]} 14. O-O-O {[%clk 0:02:10.4]} 14... Ba3 {[%clk 0:02:18.7]} 15. Kb1
{[%clk 0:02:10.6]} 15... a5 {[%clk 0:02:15.2]} 16. Bxa3 {[%clk 0:01:29.6]} 16...
Qxa3 {[%clk 0:02:08.6]} 17. Ka1 {[%clk 0:01:29.3]} 17... a4 {[%clk 0:02:05.1]}
18. Nb1 {[%clk 0:01:28.9]} 18... Qe7 {[%clk 0:02:03.7]} 19. Kb2 {[%clk
0:01:29.5]} 19... b5 {[%clk 0:02:00.1]} 20. Rhe1 {[%clk 0:01:23]} 20... Nb6
{[%clk 0:01:58]} 21. f4 {[%clk 0:01:12.4]} 21... O-O {[%clk 0:01:56.1]} 22. d4
{[%clk 0:01:01.9]} 22... axb3 {[%clk 0:01:47.8]} 23. cxb3 {[%clk 0:00:58.1]}
23... exf4 {[%clk 0:01:29.7]} 24. exf4 {[%clk 0:00:56.8]} 24... Qa7 {[%clk
0:01:30.2]} 25. Qe7 {[%clk 0:00:48]} 25... Qxa2+ {[%clk 0:01:26.9]} 26. Kc3
{[%clk 0:00:43.2]} 26... Qxg2 {[%clk 0:01:16.5]} 27. Re2 {[%clk 0:00:33.5]}
27... Ne4+ {[%clk 0:01:12]} 28. Kd3 {[%clk 0:00:29.7]} 28... Qf3+ {[%clk
0:00:58.4]} 0-1

[Event "*** Titled Tuesday Blitz"]
[Site "Chess.com"]
[Date "2021.04.20"]
[Round "3"]
[White "Revnov"]
[Black "Oleksandr_Bortnyk"]
[Result "0-1"]
[WhiteElo "2657"]
[BlackElo "2940"]
[TimeControl "180+1"]
[EndTime "10:26:09 PDT"]
[Termination "Oleksandr_Bortnyk won by resignation"]

1. b3 {[%clk 0:03:00.9]} 1... Nf6 {[%clk 0:02:58.7]} 2. Bb2 {[%clk 0:03:01.6]}
2... g6 {[%clk 0:02:59.6]} 3. e3 {[%clk 0:03:00.9]} 3... Bg7 {[%clk 0:03:00]} 4.
Nf3 {[%clk 0:03:01.4]} 4... O-O {[%clk 0:03:00.4]} 5. d4 {[%clk 0:03:01.9]} 5...
d5 {[%clk 0:03:01.1]} 6. Nbd2 {[%clk 0:03:01.3]} 6... c6 {[%clk 0:03:02]} 7. Be2
{[%clk 0:03:00.9]} 7... Bf5 {[%clk 0:03:02.6]} 8. Nh4 {[%clk 0:02:59.8]} 8...
Bd7 {[%clk 0:02:48.5]} 9. O-O {[%clk 0:02:58.4]} 9... a5 {[%clk 0:02:48.7]} 10.
a3 {[%clk 0:02:57.5]} 10... Re8 {[%clk 0:02:43.7]} 11. c4 {[%clk 0:02:55.5]}
11... Ne4 {[%clk 0:02:38.6]} 12. g3 {[%clk 0:02:38.2]} 12... Nxd2 {[%clk
0:02:35.5]} 13. Qxd2 {[%clk 0:02:38]} 13... Bh3 {[%clk 0:02:36.2]} 14. Rfc1
{[%clk 0:02:35.7]} 14... dxc4 {[%clk 0:02:34.6]} 15. bxc4 {[%clk 0:02:27.9]}
15... e5 {[%clk 0:02:33.3]} 16. d5 {[%clk 0:02:20.4]} 16... Na6 {[%clk
0:02:33.5]} 17. Rd1 {[%clk 0:02:05.4]} 17... Nc5 {[%clk 0:02:32.4]} 18. Rab1
{[%clk 0:01:52.7]} 18... Qe7 {[%clk 0:02:19.1]} 19. Qc2 {[%clk 0:01:31.8]} 19...
Bf6 {[%clk 0:02:14.5]} 20. dxc6 {[%clk 0:00:55.8]} 20... Bxh4 {[%clk 0:02:08.9]}
21. gxh4 {[%clk 0:00:55.3]} 21... Qxh4 {[%clk 0:01:56.6]} 22. Bf3 {[%clk
0:00:50.2]} 22... e4 {[%clk 0:01:56.8]} 23. Qc3 {[%clk 0:00:47.6]} 23... f6
{[%clk 0:01:48]} 24. Qxf6 {[%clk 0:00:19.6]} 24... Qxf6 {[%clk 0:01:48.9]} 25.
Bxf6 {[%clk 0:00:19.8]} 25... exf3 {[%clk 0:01:47.2]} 26. Rd5 {[%clk 0:00:18.8]}
26... b6 {[%clk 0:01:32.7]} 27. Rxb6 {[%clk 0:00:18]} 27... Ne4 {[%clk
0:01:32.9]} 28. Be5 {[%clk 0:00:15.4]} 28... Be6 {[%clk 0:01:26.5]} 29. Rd4
{[%clk 0:00:14]} 29... Nc3 {[%clk 0:01:16.9]} 30. Kf1 {[%clk 0:00:08.8]} 30...
Bh3+ {[%clk 0:01:16]} 31. Ke1 {[%clk 0:00:08.1]} 31... Rxe5 {[%clk 0:01:16.3]}
32. c7 {[%clk 0:00:07.8]} 32... Ree8 {[%clk 0:01:16.5]} 0-1

[Event "*** Titled Tuesday Blitz"]
[Site "Chess.com"]
[Date "2021.04.20"]
[Round "3"]
[White "Michaelson_11"]
[Black "kleopl"]
[Result "0-1"]
[WhiteElo "2215"]
[BlackElo "2500"]
[TimeControl "180+1"]
[EndTime "10:26:09 PDT"]
[Termination "kleopl won on time"]

1. e4 {[%clk 0:03:00.9]} 1... c6 {[%clk 0:02:59.9]} 2. d4 {[%clk 0:03:00.3]}
2... d5 {[%clk 0:03:00.8]} 3. Nd2 {[%clk 0:02:59.9]} 3... a6 {[%clk 0:02:59.7]}
4. c3 {[%clk 0:02:56.7]} 4... dxe4 {[%clk 0:02:54.8]} 5. Nxe4 {[%clk 0:02:57.6]}
5... Nd7 {[%clk 0:02:54.9]} 6. Ng5 {[%clk 0:02:46.6]} 6... Ngf6 {[%clk
0:02:48.1]} 7. Bd3 {[%clk 0:02:44.6]} 7... c5 {[%clk 0:02:33.8]} 8. N1f3 {[%clk
0:02:12.4]} 8... e6 {[%clk 0:02:30.1]} 9. Qe2 {[%clk 0:02:00.6]} 9... b5 {[%clk
0:02:21.8]} 10. Bf4 {[%clk 0:01:12.3]} 10... Bb7 {[%clk 0:02:15.4]} 11. dxc5
{[%clk 0:01:10.3]} 11... Nxc5 {[%clk 0:02:12.2]} 12. O-O-O {[%clk 0:01:09.7]}
12... Nxd3+ {[%clk 0:02:08.9]} 13. Rxd3 {[%clk 0:01:07.9]} 13... Qb6 {[%clk
0:02:02.2]} 14. Ne5 {[%clk 0:00:57.6]} 14... Nd5 {[%clk 0:01:56.7]} 15. Be3
{[%clk 0:00:20.7]} 15... Nxe3 {[%clk 0:01:48.8]} 16. Rxe3 {[%clk 0:00:20.5]}
16... Bc5 {[%clk 0:01:44]} 17. Nexf7 {[%clk 0:00:03.3]} 17... Bxe3+ {[%clk
0:01:40.6]} 18. fxe3 {[%clk 0:00:04.2]} 18... Rf8 {[%clk 0:01:35.9]} 19. Qh5
{[%clk 0:00:02.9]} 19... Qxe3+ {[%clk 0:01:27.4]} 20. Kb1 {[%clk 0:00:03.1]}
20... Be4+ {[%clk 0:01:27.7]} 21. Ka1 {[%clk 0:00:03.1]} 21... Bg6 {[%clk
0:01:27.7]} 22. Qg4 {[%clk 0:00:02.2]} 22... Bxf7 {[%clk 0:01:18.6]} 23. Rf1
{[%clk 0:00:01.7]} 23... O-O-O {[%clk 0:01:11.1]} 24. Nxf7 {[%clk 0:00:01.1]}
24... Rxf7 {[%clk 0:01:09.6]} 0-1

[Event "*** Titled Tuesday Blitz"]
[Site "Chess.com"]
[Date "2021.04.20"]
[Round "3"]
[White "Triumphmate"]
[Black "CraiggoryC"]
[Result "1-0"]
[WhiteElo "2437"]
[BlackElo "2209"]
[TimeControl "180+1"]
[EndTime "10:26:10 PDT"]
[Termination "Triumphmate won by resignation"]

1. e4 {[%clk 0:03:00.9]} 1... e6 {[%clk 0:02:36.5]} 2. Nf3 {[%clk 0:02:57.9]}
2... d5 {[%clk 0:02:36.9]} 3. exd5 {[%clk 0:02:58.8]} 3... exd5 {[%clk 0:02:37]}
4. d4 {[%clk 0:02:59.7]} 4... Bd6 {[%clk 0:02:37.1]} 5. Bd3 {[%clk 0:03:00.6]}
5... Nc6 {[%clk 0:02:37.2]} 6. c3 {[%clk 0:03:00.5]} 6... Bg4 {[%clk 0:02:37.2]}
7. Be3 {[%clk 0:03:00.4]} 7... Nge7 {[%clk 0:02:37.2]} 8. Nbd2 {[%clk
0:02:58.2]} 8... Qd7 {[%clk 0:02:37.1]} 9. O-O {[%clk 0:02:58.2]} 9... f6 {[%clk
0:02:33.4]} 10. Qc2 {[%clk 0:02:58.5]} 10... O-O-O {[%clk 0:02:31.6]} 11. b4
{[%clk 0:02:57]} 11... Rde8 {[%clk 0:02:25.6]} 12. a4 {[%clk 0:02:57.2]} 12...
Kb8 {[%clk 0:02:23]} 13. a5 {[%clk 0:02:56.5]} 13... g5 {[%clk 0:02:13.6]} 14.
b5 {[%clk 0:02:48.2]} 14... Nd8 {[%clk 0:02:11.5]} 15. b6 {[%clk 0:02:33.4]}
15... Ne6 {[%clk 0:01:55.7]} 16. a6 {[%clk 0:02:28.6]} 16... cxb6 {[%clk
0:01:48.1]} 17. axb7 {[%clk 0:02:27.6]} 17... Nf4 {[%clk 0:01:43.1]} 18. Qa2
{[%clk 0:02:15.3]} 18... Qxb7 {[%clk 0:01:29]} 19. Ba6 {[%clk 0:02:13.8]} 19...
Qc7 {[%clk 0:01:22.5]} 20. Rfb1 {[%clk 0:02:11.3]} 20... Nf5 {[%clk 0:01:12.7]}
21. c4 {[%clk 0:01:57.7]} 21... Ne2+ {[%clk 0:00:51.9]} 22. Kh1 {[%clk
0:01:56.2]} 22... Nxe3 {[%clk 0:00:46.9]} 23. fxe3 {[%clk 0:01:53.3]} 23... Rxe3
{[%clk 0:00:31.6]} 24. c5 {[%clk 0:01:52]} 24... Bxf3 {[%clk 0:00:17.9]} 25.
Nxf3 {[%clk 0:01:36.8]} 25... Bxh2 {[%clk 0:00:16.1]} 26. Nxh2 {[%clk
0:01:34.7]} 26... Ng3+ {[%clk 0:00:15.6]} 27. Kg1 {[%clk 0:01:33.8]} 27... Rhe8
{[%clk 0:00:15.4]} 28. cxb6 {[%clk 0:01:28.1]} 28... axb6 {[%clk 0:00:16.3]} 29.
Bb5 {[%clk 0:01:28]} 29... Re1+ {[%clk 0:00:12.2]} 30. Rxe1 {[%clk 0:01:21.5]}
30... Rxe1+ {[%clk 0:00:12.1]} 31. Rxe1 {[%clk 0:01:22.4]} 31... Qc3 {[%clk
0:00:11.8]} 32. Re8+ {[%clk 0:01:18.7]} 32... Kc7 {[%clk 0:00:11.5]} 33. Qa7+
{[%clk 0:01:18.8]} 1-0

[Event "*** Titled Tuesday Blitz"]
[Site "Chess.com"]
[Date "2021.04.20"]
[Round "3"]
[White "Susal_De_Silva"]
[Black "Piotrek1979"]
[Result "0-1"]
[WhiteElo "2573"]
[BlackElo "2403"]
[TimeControl "180+1"]
[EndTime "10:26:12 PDT"]
[Termination "Piotrek1979 won by resignation"]

1. e4 {[%clk 0:03:00.9]} 1... c6 {[%clk 0:02:59.1]} 2. d4 {[%clk 0:03:01]} 2...
d5 {[%clk 0:03:00]} 3. Nc3 {[%clk 0:03:01.9]} 3... dxe4 {[%clk 0:02:59]} 4. Nxe4
{[%clk 0:03:02.8]} 4... Bf5 {[%clk 0:02:59.1]} 5. Ng3 {[%clk 0:03:03.1]} 5...
Bg6 {[%clk 0:02:59.4]} 6. h4 {[%clk 0:03:04]} 6... h6 {[%clk 0:02:59]} 7. Nf3
{[%clk 0:03:04.9]} 7... Nd7 {[%clk 0:02:58.2]} 8. h5 {[%clk 0:03:05.6]} 8... Bh7
{[%clk 0:02:57.8]} 9. Bd3 {[%clk 0:03:06.5]} 9... Bxd3 {[%clk 0:02:57.9]} 10.
Qxd3 {[%clk 0:03:07.4]} 10... e6 {[%clk 0:02:58.3]} 11. Bd2 {[%clk 0:03:08.2]}
11... Ngf6 {[%clk 0:02:56.1]} 12. O-O-O {[%clk 0:03:08.2]} 12... Be7 {[%clk
0:02:55]} 13. Kb1 {[%clk 0:03:08.5]} 13... O-O {[%clk 0:02:50.7]} 14. Ne4 {[%clk
0:03:09]} 14... Nxe4 {[%clk 0:02:51.2]} 15. Qxe4 {[%clk 0:03:09.9]} 15... Nf6
{[%clk 0:02:51.4]} 16. Qe2 {[%clk 0:03:10.8]} 16... Qd5 {[%clk 0:02:51.6]} 17.
Ne5 {[%clk 0:03:11.3]} 17... Qe4 {[%clk 0:02:45.9]} 18. Qxe4 {[%clk 0:03:09.2]}
18... Nxe4 {[%clk 0:02:46.3]} 19. Be3 {[%clk 0:03:10.1]} 19... Rfd8 {[%clk
0:02:42.7]} 20. g4 {[%clk 0:03:05.9]} 20... Nd6 {[%clk 0:02:15.8]} 21. f4 {[%clk
0:03:01.3]} 21... a5 {[%clk 0:02:03.8]} 22. c4 {[%clk 0:02:58.4]} 22... a4
{[%clk 0:01:58.6]} 23. Rhg1 {[%clk 0:02:56.8]} 23... f6 {[%clk 0:01:54.1]} 24.
Ng6 {[%clk 0:02:55.3]} 24... Kf7 {[%clk 0:01:54]} 25. Rc1 {[%clk 0:02:50.3]}
25... Ne4 {[%clk 0:01:39.6]} 26. Rcf1 {[%clk 0:02:44.2]} 26... Bb4 {[%clk
0:01:37]} 27. Kc2 {[%clk 0:02:36.6]} 27... c5 {[%clk 0:01:30.2]} 28. dxc5 {[%clk
0:02:22.4]} 28... Rac8 {[%clk 0:01:22.8]} 29. g5 {[%clk 0:02:17.6]} 29... Bxc5
{[%clk 0:01:21.2]} 30. Bxc5 {[%clk 0:02:17.9]} 30... Rd2+ {[%clk 0:01:17.5]} 31.
Kc1 {[%clk 0:02:16.6]} 31... Rxc5 {[%clk 0:01:17.5]} 32. b3 {[%clk 0:02:08.5]}
32... Rxa2 {[%clk 0:01:14.2]} 33. gxh6 {[%clk 0:02:04.9]} 33... axb3 {[%clk
0:01:01.4]} 34. Ne5+ {[%clk 0:01:10.9]} 34... Rxe5 {[%clk 0:01:00.4]} 35. Rxg7+
{[%clk 0:01:06.1]} 35... Kf8 {[%clk 0:01:00.2]} 36. fxe5 {[%clk 0:00:45.4]}
36... Rc2+ {[%clk 0:00:58.1]} 0-1

[Event "*** Titled Tuesday Blitz"]
[Site "Chess.com"]
[Date "2021.04.20"]
[Round "3"]
[White "annamaja"]
[Black "sara_khm"]
[Result "0-1"]
[WhiteElo "2283"]
[BlackElo "2528"]
[TimeControl "180+1"]
[EndTime "10:26:16 PDT"]
[Termination "sara_khm won by resignation"]

1. e4 {[%clk 0:03:00.9]} 1... e5 {[%clk 0:03:00.9]} 2. Nf3 {[%clk 0:03:00.7]}
2... Nc6 {[%clk 0:03:00.1]} 3. Bb5 {[%clk 0:02:59.7]} 3... a6 {[%clk 0:02:55.9]}
4. Ba4 {[%clk 0:02:59.3]} 4... g6 {[%clk 0:02:56.4]} 5. O-O {[%clk 0:02:58.8]}
5... Bg7 {[%clk 0:02:56.3]} 6. c3 {[%clk 0:02:53.5]} 6... d6 {[%clk 0:02:56.6]}
7. h3 {[%clk 0:02:49.7]} 7... Bd7 {[%clk 0:02:56]} 8. d4 {[%clk 0:02:46.5]} 8...
Nf6 {[%clk 0:02:55.7]} 9. Re1 {[%clk 0:02:43.8]} 9... O-O {[%clk 0:02:55.3]} 10.
Bg5 {[%clk 0:02:37.3]} 10... h6 {[%clk 0:02:52.6]} 11. Bh4 {[%clk 0:02:33.2]}
11... Qe8 {[%clk 0:02:31.9]} 12. Nbd2 {[%clk 0:01:58.7]} 12... Nxd4 {[%clk
0:02:27.6]} 13. Bxd7 {[%clk 0:01:46.3]} 13... Nxf3+ {[%clk 0:02:27.2]} 14. Qxf3
{[%clk 0:01:38.5]} 14... Nxd7 {[%clk 0:02:26]} 15. g4 {[%clk 0:01:34.3]} 15...
Qe6 {[%clk 0:02:24.7]} 16. b3 {[%clk 0:01:22]} 16... f5 {[%clk 0:02:19.2]} 17.
exf5 {[%clk 0:01:00.3]} 17... gxf5 {[%clk 0:02:18.5]} 18. Qxb7 {[%clk
0:00:57.7]} 18... fxg4 {[%clk 0:02:16.2]} 19. hxg4 {[%clk 0:00:37.3]} 19...
Qxg4+ {[%clk 0:02:15.5]} 20. Bg3 {[%clk 0:00:37.7]} 20... Rac8 {[%clk
0:01:43.4]} 21. Re4 {[%clk 0:00:31.7]} 21... Qg6 {[%clk 0:01:42.3]} 22. Qxa6
{[%clk 0:00:21.3]} 22... Nf6 {[%clk 0:01:29.4]} 23. Re3 {[%clk 0:00:17.8]} 23...
h5 {[%clk 0:01:27.9]} 24. Qc4+ {[%clk 0:00:13.7]} 24... d5 {[%clk 0:01:25.1]}
25. Qh4 {[%clk 0:00:13.7]} 25... Bh6 {[%clk 0:01:17.7]} 26. Rae1 {[%clk
0:00:06.1]} 26... Bg5 {[%clk 0:01:15.3]} 27. Qh2 {[%clk 0:00:05.3]} 27... Bxe3
{[%clk 0:01:11.2]} 28. Rxe3 {[%clk 0:00:05.5]} 28... Ng4 {[%clk 0:01:11.5]} 0-1